bitfinex-derivatives/quotes_BNBF0:USTF0_20250101
["timestamp","ask_amount","ask_price","bid_price","bid_amount"]
[1735719678184,0.26154243,704.36,703.05,1.0621168]
[1735719678486,0.26154243,704.35,703.05,1.0621168]
[1735719678687,0.26154243,704.34,703.05,1.0621168]
[1735719678884,0.26154243,704.33,703.05,1.0621168]
[1735719679078,0.26154243,704.32,703.05,1.0621168]
[1735719679284,1.48361311,704.44,702.99,1.0621168]
[1735719679482,0.26155039,704.43,702.99,1.0621168]
[1735719679886,1.74514769,704.42,702.99,1.0621168]
[1735719680085,0.26155039,704.41,702.99,1.0621168]
[1735719680290,0.26155039,704.41,702.96,1.0621168]
[1735719681489,0.26155519,704.4,702.96,1.0621168]
[1735719681683,0.26155519,704.39,702.96,1.0621168]
[1735719681887,0.26155519,704.38,702.96,1.0621168]
[1735719682087,0.26155519,704.37,702.96,1.0621168]
[1735719682288,0.261562,704.36,702.96,1.0621168]
[1735719682482,0.261562,704.35,702.96,1.0621168]
[1735719682685,0.261562,704.34,702.96,1.0621168]
[1735719682988,1.4835973,704.42,702.96,1.0621168]
[1735719683183,0.26155959,704.41,702.96,1.0621168]
[1735719683390,0.26155959,704.41,702.97,1.0621168]
[1735719684693,0.26155959,704.41,702.9,1.0621168]
[1735719684889,0.2615888,704.4,702.9,1.0621168]
[1735719685083,0.2615888,704.39,702.9,1.0621168]
[1735719685287,0.2615888,704.38,702.9,1.0621168]
[1735719685487,0.2615888,704.37,702.9,1.0621168]
[1735719685691,0.2615888,704.36,702.91,1.0621168]
[1735719685887,0.2615888,704.35,702.91,1.0621168]
[1735719686086,0.2615888,704.34,702.91,1.0621168]
[1735719686290,0.2615888,704.33,702.91,1.0621168]
[1735719686589,0.2615888,704.32,702.91,1.0621168]
[1735719686787,0.2615888,704.31,702.97,1.0621168]
[1735719686988,0.2615888,704.3,702.97,1.0621168]
[1735719687189,0.2615888,704.29,702.97,1.0621168]
[1735719687491,0.26157813,704.28,702.97,1.0621168]
[1735719687687,0.26157813,704.27,702.97,1.0621168]
[1735719687991,0.26157813,704.26,702.99,1.0621168]
[1735719688187,0.26157813,704.25,702.99,1.0621168]
[1735719688395,0.26157813,704.24,702.99,1.0621168]
[1735719688691,0.26157813,704.23,702.99,1.0621168]
[1735719688892,0.26157813,704.23,702.71,0.28461242]
[1735719688893,0.26157813,704.22,702.96,1.0621168]
[1735719689091,0.26157813,704.21,702.96,1.0621168]
[1735719689291,0.26157813,704.2,702.96,1.0621168]
[1735719689593,0.26157813,704.19,702.96,1.0621168]
[1735719689891,0.26157813,704.18,702.96,1.0621168]
[1735719690091,0.2838651,704.56,702.71,0.28461242]
[1735719690092,1.48377125,704.22,703.05,1.0621168]
[1735719690285,0.2615986,704.21,703.05,1.0621168]
[1735719691189,0.2615986,704.21,703.07,1.0621168]
[1735719692494,0.2615986,704.21,703.09,1.0621168]
[1735719693499,0.2615986,704.21,703.1,1.0621168]
[1735719694797,0.2615986,704.21,702.72,0.71473714]
[1735719694798,0.2615986,704.21,703.09,1.0621168]
[1735719695792,0.2615986,704.21,703.1,1.0621168]
[1735719696202,0.26159764,704.2,703.1,1.0621168]
[1735719696496,0.26159764,704.19,703.1,1.0621168]
[1735719696697,0.26159764,704.18,703.11,1.0621168]
[1735719696892,0.26159764,704.17,703.11,1.0621168]
[1735719697099,0.26159764,704.16,703.11,1.0621168]
[1735719697291,0.26159764,704.15,703.11,1.0621168]
[1735719697492,1.48377125,704.22,703.11,1.0621168]
[1735719697698,0.26159373,704.21,703.13,1.0621168]
[1735719699099,0.26159373,704.21,702.74,0.28460027]
[1735719699100,0.26159373,704.21,703.17,1.0621168]
[1735719700600,0.26159373,704.21,703.16,1.0621168]
[1735719700796,1.48377125,704.22,703.16,1.0621168]
[1735719700995,0.26160018,704.21,703.16,1.0621168]
[1735719701899,0.26160018,704.21,703.18,1.0621168]
[1735719703799,0.26157238,704.2,703.18,1.0621168]
[1735719704000,0.26157238,704.19,703.18,1.0621168]
[1735719704299,0.26156711,704.18,703.24,1.0621168]
[1735719704498,1.05985319,704.32,703.24,1.0621168]
[1735719704697,0.26156298,704.31,703.24,1.0621168]
[1735719705201,1.05985319,704.32,703.24,1.0621168]
[1735719705499,1.05985319,704.31,703.33,1.0621168]
[1735719706700,1.48358149,704.39,703.27,1.0621168]
[1735719707000,0.26155562,704.38,703.27,1.0621168]
[1735719708900,0.26156626,704.37,703.27,1.0621168]
[1735719709096,0.26156626,704.36,703.26,1.0621168]
[1735719709901,0.26156626,704.36,703.25,1.0621168]
[1735719710096,0.26156626,704.35,703.25,1.0621168]
[1735719710302,0.26156626,704.34,703.25,1.0621168]
[1735719710504,0.26156626,704.33,703.25,1.0621168]
[1735719710697,0.26156626,704.32,703.25,1.0621168]
[1735719710901,1.48358149,704.39,703.25,1.0621168]
[1735719711101,0.26156101,704.38,703.25,1.0621168]
[1735719711496,0.261561,704.37,703.25,1.0621168]
[1735719711701,0.261561,704.36,703.25,1.0621168]
[1735719711900,1.48358149,704.39,703.25,1.0621168]
[1735719711901,0.261561,704.35,703.25,1.0621168]
[1735719712201,1.48358149,704.39,703.25,1.0621168]
[1735719712403,0.26156545,704.38,703.25,1.0621168]
[1735719712605,0.26156545,704.38,703.26,1.0621168]
[1735719713604,0.26156545,704.38,703.23,1.0621168]
[1735719714303,0.26156213,704.37,703.23,1.0621168]
[1735719714504,0.26156213,704.36,703.23,1.0621168]
[1735719714705,1.48358149,704.39,703.24,1.0621168]
[1735719714998,0.26156196,704.38,703.24,1.0621168]
[1735719716000,0.26156196,704.38,702.75,0.71473714]
[1735719716001,1.32141515,704.38,703.27,1.0621168]
[1735719716198,0.26156196,704.37,703.27,1.0621168]
[1735719717204,0.26156196,704.36,703.27,1.0621168]
[1735719717403,0.26156196,704.35,703.27,1.0621168]
[1735719717604,0.26156196,704.34,703.27,1.0621168]
[1735719717804,2.54343468,704.39,703.27,1.0621168]
[1735719718006,0.26156023,704.38,703.27,1.0621168]
[1735719718507,0.26156023,704.38,703.26,1.0621168]
[1735719719607,0.26156372,704.37,703.26,1.0621168]
[1735719719807,1.05985319,704.38,703.26,1.0621168]
[1735719720209,0.26159012,704.37,703.26,1.0621168]
[1735719721010,0.26159012,704.37,703.11,1.0621168]
[1735719721810,0.261617,704.36,703.11,1.0621168]
[1735719722011,0.26159012,704.37,703.11,1.0621168]
[1735719722206,0.26161411,704.36,703.11,1.0621168]
[1735719722607,0.26161411,704.36,703.03,1.0621168]
[1735719722912,0.26159012,704.37,703.03,1.0621168]
[1735719723107,0.26161833,704.36,703.03,1.0621168]
[1735719724108,0.26161918,704.35,702.98,1.0621168]
[1735719724308,1.32144331,704.37,702.98,1.0621168]
[1735719724708,1.05985319,704.37,702.98,1.0621168]
[1735719724911,1.48358149,704.39,703.01,1.0621168]
[1735719725110,0.28393764,704.38,703.01,1.0621168]
[1735719725507,0.26160702,704.37,703.01,1.0621168]
[1735719725811,0.54554869,704.37,703.01,1.0621168]
[1735719726012,0.26160702,704.36,703.01,1.0621168]
[1735719726608,0.28394167,704.37,703.01,1.0621168]
[1735719726609,0.26160787,704.35,703.01,1.0621168]
[1735719726811,0.26160787,704.34,703.01,1.0621168]
[1735719727013,0.26160787,704.33,703.01,1.0621168]
[1735719727314,0.26161495,704.32,703.04,1.0621168]
[1735719727614,0.26161495,704.31,703.04,1.0621168]
[1735719727815,0.26161495,704.3,703.04,1.0621168]
[1735719728013,1.48374489,704.3,703.04,1.0621168]
[1735719728414,1.48374489,704.3,703.01,1.0621168]
[1735719729617,0.26161501,704.29,703.02,1.0621168]
[1735719730918,0.26161501,704.29,703.04,1.0621168]
[1735719731913,1.48374489,704.3,703.04,1.0621168]
[1735719732114,0.26163246,704.29,703.04,1.0621168]
[1735719732315,1.05985319,704.21,703.08,1.0621168]
[1735719732519,0.26163246,704.2,703.08,1.0621168]
[1735719733814,0.26163246,704.2,703.07,1.0621168]
[1735719734018,0.26163246,704.19,703.07,1.0621168]
[1735719734317,0.26163246,704.18,703.07,1.0621168]
[1735719734516,0.26163246,704.17,703.07,1.0621168]
[1735719734714,0.26163246,704.16,703.07,1.0621168]
[1735719734920,0.26163246,704.15,703.08,1.0621168]
[1735719735123,0.26163246,704.14,703.08,1.0621168]
[1735719735322,1.05985319,704.23,703.08,1.0621168]
[1735719735517,0.26162917,704.22,703.08,1.0621168]
[1735719736419,0.26162917,704.22,702.87,1.06624449]
[1735719736420,0.26162917,704.22,703.07,1.0621168]
[1735719736714,0.26162917,704.21,703.07,1.0621168]
[1735719736920,0.26162917,704.2,703.07,1.0621168]
[1735719737116,0.26162917,704.19,703.07,1.0621168]
[1735719737320,1.05985319,704.24,703.07,1.0621168]
[1735719737518,0.26163365,704.23,703.07,1.0621168]
[1735719738424,1.48383979,704.22,703.07,1.0621168]
[1735719738617,0.26163365,704.21,703.07,1.0621168]
[1735719738923,0.26163365,704.21,703.04,1.0621168]
[1735719740018,0.26162976,704.2,703.04,1.0621168]
[1735719740224,0.26162976,704.19,703.04,1.0621168]
[1735719740423,0.26162976,704.18,703.04,1.0621168]
[1735719740625,0.26162976,704.17,703.07,1.0621168]
[1735719740819,0.26162976,704.16,703.07,1.0621168]
[1735719741025,0.26162976,704.15,703.07,1.0621168]
[1735719741323,0.26162976,704.14,703.07,1.0621168]
[1735719741524,0.26163158,704.13,703.07,1.0621168]
[1735719741726,0.26163158,704.12,703.06,1.0621168]
[1735719741922,0.26163158,704.11,703.06,1.0621168]
[1735719742118,0.26163158,704.1,703.06,1.0621168]
[1735719742323,0.26163158,704.09,703.06,1.0621168]
[1735719742624,1.48383979,704.22,703.06,1.0621168]
[1735719742925,0.26163588,704.21,703.06,1.0621168]
[1735719743226,1.05985319,704.17,703.1,1.0621168]
[1735719743418,0.26163588,704.16,703.1,1.0621168]
[1735719744825,0.26163588,704.15,703.1,1.0621168]
[1735719745025,0.26163588,704.14,703.1,1.0621168]
[1735719745221,0.26163588,704.13,703.1,1.0621168]
[1735719745426,0.26163588,704.17,703.1,1.0621168]
[1735719745622,1.32148907,704.16,703.08,1.0621168]
[1735719745926,0.26163588,704.15,703.08,1.0621168]
[1735719746829,0.26163588,704.15,703.1,1.0621168]
[1735719747127,0.26163588,704.14,703.1,1.0621168]
[1735719747427,0.26163588,704.13,703.1,1.0621168]
[1735719747628,0.26163588,704.12,703.1,1.0621168]
[1735719747827,0.26163588,704.11,703.1,1.0621168]
[1735719748027,0.26163401,704.1,703.1,1.0621168]
[1735719748225,0.26163401,704.09,703.1,1.0621168]
[1735719748426,0.26163401,704.08,703.1,1.0621168]
[1735719748630,0.26163401,704.07,703.1,1.0621168]
[1735719748828,0.26163401,704.06,703.1,1.0621168]
[1735719749129,0.26163401,704.05,703.12,1.0621168]
[1735719749328,0.26163401,704.04,703.12,1.0621168]
[1735719749529,0.26163401,704.03,703.12,1.0621168]
[1735719749728,0.26163401,704.02,703.12,1.0621168]
[1735719749928,0.26163401,704.01,703.12,1.0621168]
[1735719750229,0.26163401,704.0,703.12,1.0621168]
[1735719750430,1.05985319,704.15,703.13,1.0621168]
[1735719750624,0.26164132,704.14,703.13,1.0621168]
[1735719751331,1.05985319,704.13,703.13,1.0621168]
[1735719751531,0.26164132,704.12,703.13,1.0621168]
[1735719752327,1.05985319,704.11,703.14,1.0621168]
[1735719752527,0.26164132,704.1,703.14,1.0621168]
[1735719753130,0.26164132,704.1,703.16,1.0621168]
[1735719753331,1.32149451,704.1,703.16,1.0621168]
[1735719753527,0.26164132,704.09,703.16,1.0621168]
[1735719754034,1.05985319,704.07,703.18,1.0621168]
[1735719754332,0.26164132,704.06,703.18,1.0621168]
[1735719755328,0.26164132,704.06,702.79,0.7164019]
[1735719755329,0.26164132,704.06,703.25,1.0621168]
[1735719755535,0.26164132,704.05,703.25,1.0621168]
[1735719755832,0.26164132,704.04,703.25,1.0621168]
[1735719756034,0.26164132,704.08,703.25,1.0621168]
[1735719756234,0.26164132,704.07,703.25,1.0621168]
[1735719756533,0.26164132,704.07,702.82,1.27949339]
[1735719756534,0.26164132,704.06,703.23,1.0621168]
[1735719757535,1.32149451,704.06,703.25,1.0621168]
[1735719757729,0.26164132,704.05,703.25,1.0621168]
[1735719758834,0.26163471,704.04,703.25,1.0621168]
[1735719759036,0.26163471,704.03,703.23,1.0621168]
[1735719760035,1.3214879,704.03,703.23,1.0621168]
[1735719760234,0.26163471,704.02,703.23,1.0621168]
[1735719761138,0.26163471,704.02,702.83,0.7164019]
[1735719761139,0.26163471,704.02,703.24,1.0621168]
[1735719761535,0.26163388,704.01,703.24,1.0621168]
[1735719761737,1.05985319,704.03,703.24,1.0621168]
[1735719761936,0.26163388,704.02,703.24,1.0621168]
[1735719762235,0.26163388,704.02,703.25,1.0621168]
[1735719763640,1.32148707,704.02,703.25,1.0621168]
[1735719763838,0.26163388,704.01,703.25,1.0621168]
[1735719764139,1.05985319,704.02,703.25,1.0621168]
[1735719764338,0.26163424,704.01,703.25,1.0621168]
[1735719765241,1.05985319,704.02,703.25,1.0621168]
[1735719766535,1.05985319,704.01,703.26,1.0621168]
[1735719767840,1.05985319,704.08,703.35,1.0621168]
[1735719769036,1.05985319,704.12,703.33,1.0621168]
[1735719769242,0.2615981,704.11,703.33,1.0621168]
[1735719769442,1.05985319,704.12,703.33,1.0621168]
[1735719770236,1.05985319,704.18,703.34,1.0621168]
[1735719771444,1.05985319,704.25,703.37,1.0621168]
[1735719771638,0.26156478,704.24,703.37,1.0621168]
[1735719772146,0.26156028,704.23,703.37,1.0621168]
[1735719772345,0.26156028,704.22,703.37,1.0621168]
[1735719772546,1.05985319,704.25,703.37,1.0621168]
[1735719772746,1.05985319,704.25,702.94,0.7164019]
[1735719772747,0.26156215,704.24,703.36,1.0621168]
[1735719772947,0.26156215,704.23,703.36,1.0621168]
[1735719773148,0.26156215,704.22,703.36,1.0621168]
[1735719773343,0.26156215,704.21,703.36,1.0621168]
[1735719773541,1.05985319,704.29,703.36,1.0621168]
[1735719773742,0.26156028,704.28,703.36,1.0621168]
[1735719773947,0.26156028,704.28,703.31,1.0621168]
[1735719774251,0.26156028,704.27,703.31,1.0621168]
[1735719774551,0.26156028,704.26,703.31,1.0621168]
[1735719774848,0.26156003,704.25,703.31,1.0621168]
[1735719775051,0.26156003,704.24,703.3,1.0621168]
[1735719775249,0.26156003,704.23,703.3,1.0621168]
[1735719775548,0.26156003,704.22,703.3,1.0621168]
[1735719775749,0.26156003,704.21,703.3,1.0621168]
[1735719776043,1.05985319,704.35,703.3,1.0621168]
[1735719776245,0.26155974,704.34,703.3,1.0621168]
[1735719777251,0.26155974,704.34,703.28,1.0621168]
[1735719777452,2.54360863,704.36,703.28,1.0621168]
[1735719777748,0.26156416,704.35,703.28,1.0621168]
[1735719778349,0.26156416,704.35,703.27,1.0621168]
[1735719779453,1.05985319,704.34,703.25,1.0621168]
[1735719779654,0.26156416,704.33,703.25,1.0621168]
[1735719780153,1.05985319,704.34,703.25,1.0621168]
[1735719780346,0.26156133,704.33,703.27,1.0621168]
[1735719780548,0.26156133,704.32,703.27,1.0621168]
[1735719780751,0.26156133,704.31,703.27,1.0621168]
[1735719780954,0.26156133,704.3,703.27,1.0621168]
[1735719781152,0.26156133,704.29,703.27,1.0621168]
[1735719781351,0.26156133,704.28,703.27,1.0621168]
[1735719781552,0.26156133,704.27,703.27,1.0621168]
[1735719781747,0.26156133,704.26,703.27,1.0621168]
[1735719781951,2.54360863,704.36,703.27,1.0621168]
[1735719782152,0.26157348,704.35,703.27,1.0621168]
[1735719782655,2.54360863,704.36,703.27,1.0621168]
[1735719782849,0.2615735,704.35,703.27,1.0621168]
[1735719783653,0.2615735,704.35,702.97,0.28450716]
[1735719783654,0.2615735,704.35,703.11,1.0621168]
[1735719786557,0.2615735,704.35,703.09,1.0621168]
[1735719787062,1.48375544,704.36,703.09,1.0621168]
[1735719787760,1.48375544,704.36,703.11,1.0621168]
[1735719787962,0.26158071,704.35,703.11,1.0621168]
[1735719789059,0.26158071,704.35,703.09,1.0621168]
[1735719789464,1.48375544,704.36,703.09,1.0621168]
[1735719789959,1.48375544,704.36,703.11,1.0621168]
[1735719791855,0.26157113,704.35,703.11,1.0621168]
[1735719792559,0.26157113,704.35,703.18,1.0621168]
[1735719792763,0.26157245,704.34,703.18,1.0621168]
[1735719792961,0.26157245,704.33,703.18,1.0621168]
[1735719793162,0.26157245,704.32,703.18,1.0621168]
[1735719793457,0.26157245,704.31,703.18,1.0621168]
[1735719793761,0.26157245,704.3,703.18,1.0621168]
[1735719793963,0.26157245,704.29,703.19,1.0621168]
[1735719794159,1.48375544,704.36,703.19,1.0621168]
[1735719794358,0.26157016,704.35,703.19,1.0621168]
[1735719794961,0.26157016,704.35,703.2,1.0621168]
[1735719796163,0.26157016,704.35,703.22,1.0621168]
[1735719797266,1.32142335,704.35,703.22,1.0621168]
[1735719797463,1.05985319,704.35,703.22,1.0621168]
[1735719798369,1.48375544,704.36,703.17,1.0621168]
[1735719799866,1.48375544,704.36,703.12,1.0621168]
[1735719800967,0.26159772,704.35,703.16,1.0621168]
[1735719801766,0.26160251,704.34,703.16,1.0621168]
[1735719801965,0.26160251,704.33,703.16,1.0621168]
[1735719802160,1.48375544,704.36,703.16,1.0621168]
[1735719802361,0.26160326,704.35,703.16,1.0621168]
[1735719802567,1.05985319,704.31,703.13,1.0621168]
[1735719803471,1.05985319,704.31,703.12,1.0621168]
[1735719804467,0.26161289,704.3,703.12,1.0621168]
[1735719804666,1.05985319,704.31,703.12,1.0621168]
[1735719804870,1.05985319,704.29,703.1,1.0621168]
[1735719805471,1.48375544,704.28,703.1,1.0621168]
[1735719805671,1.48375544,704.28,703.09,1.0621168]
[1735719806870,1.48375544,704.28,703.08,1.0621168]
[1735719807470,0.26161001,704.27,703.08,1.0621168]
[1735719808678,1.48375544,704.28,703.08,1.0621168]
[1735719808879,0.26160505,704.27,703.08,1.0621168]
[1735719809081,1.05985319,704.23,703.16,1.0621168]
[1735719809280,0.26160505,704.22,703.16,1.0621168]
[1735719810181,0.26160505,704.22,703.19,1.0621168]
[1735719810381,0.26160505,704.21,703.19,1.0621168]
[1735719810577,0.26160505,704.2,703.19,1.0621168]
[1735719810781,0.26160505,704.19,703.19,1.0621168]
[1735719811083,0.26160505,704.18,703.17,1.0621168]
[1735719811277,0.26160505,704.23,703.17,1.0621168]
[1735719811478,0.26160505,704.22,703.17,1.0621168]
[1735719811677,0.26160505,704.21,703.17,1.0621168]
[1735719811878,0.26160505,704.2,703.17,1.0621168]
[1735719812082,0.26160505,704.19,703.17,1.0621168]
[1735719812282,0.26160505,704.19,703.22,1.0621168]
[1735719812283,0.26160505,704.18,703.22,1.0621168]
[1735719813386,1.05985319,704.17,703.23,1.0621168]
[1735719813678,0.26160505,704.16,703.23,1.0621168]
[1735719814080,0.26161165,704.15,703.23,1.0621168]
[1735719814279,0.26161165,704.14,703.23,1.0621168]
[1735719814484,0.26161165,704.13,703.23,1.0621168]
[1735719814677,0.26161165,704.12,703.23,1.0621168]
[1735719814877,0.26161165,704.11,703.23,1.0621168]
[1735719815077,0.26161165,704.1,703.23,1.0621168]
[1735719815285,0.26161165,704.09,703.23,1.0621168]
[1735719815481,0.26161165,704.08,703.23,1.0621168]
[1735719815783,0.26161165,704.07,703.23,1.0621168]
[1735719815982,0.26161165,704.06,703.23,1.0621168]
[1735719816183,0.26161165,704.05,703.23,1.0621168]
[1735719816382,0.26161165,704.04,703.22,1.0621168]
[1735719816577,0.26161165,704.03,703.22,1.0621168]
[1735719816781,0.26162871,704.02,703.22,1.0621168]
[1735719816978,1.05985319,704.15,703.22,1.0621168]
[1735719817182,0.26162953,704.14,703.22,1.0621168]
[1735719818185,1.05985319,704.11,703.18,1.0621168]
[1735719818386,0.26162953,704.1,703.18,1.0621168]
[1735719819787,0.26162953,704.1,703.11,1.0621168]
[1735719820087,0.26162953,704.09,703.11,1.0621168]
[1735719820285,0.26162953,704.08,703.11,1.0621168]
[1735719820481,0.26162953,704.07,703.11,1.0621168]
[1735719820684,0.26162953,704.06,703.11,1.0621168]
[1735719820885,1.48378707,704.2,703.1,1.0621168]
[1735719820886,1.05985319,704.16,703.1,1.0621168]
[1735719821086,0.26163709,704.15,703.1,1.0621168]
[1735719822184,0.26163709,704.15,703.08,1.0621168]
[1735719822783,0.26164267,704.14,703.07,1.0621168]
[1735719823389,0.26164267,704.13,703.07,1.0621168]
[1735719823689,0.26164267,704.12,703.07,1.0621168]
[1735719823882,0.26164267,704.11,703.07,1.0621168]
[1735719824084,0.26164267,704.1,703.07,1.0621168]
[1735719824389,0.26164267,704.09,703.07,1.0621168]
[1735719824590,0.26164267,704.08,703.07,1.0621168]
[1735719824789,1.05985319,704.16,703.07,1.0621168]
[1735719824989,0.26162644,704.15,703.07,1.0621168]
[1735719825189,0.26162644,704.15,703.1,1.0621168]
[1735719825390,0.26162644,704.14,703.1,1.0621168]
[1735719825582,0.26162644,704.13,703.1,1.0621168]
[1735719825786,0.26162644,704.12,703.1,1.0621168]
[1735719825986,0.26162644,704.11,703.1,1.0621168]
[1735719826189,0.26162644,704.1,703.1,1.0621168]
[1735719826493,0.26162644,704.09,703.11,1.0621168]
[1735719826692,0.26162644,704.08,703.11,1.0621168]
[1735719826885,0.26162644,704.07,703.11,1.0621168]
[1735719827086,0.26162644,704.06,703.11,1.0621168]
[1735719827292,0.26162644,704.05,703.11,1.0621168]
[1735719827492,0.26162644,704.19,703.11,1.0621168]
[1735719827693,1.05985319,704.17,703.12,1.0621168]
[1735719827886,0.26162644,704.16,703.12,1.0621168]
[1735719829193,1.05985319,704.15,703.16,1.0621168]
[1735719829395,0.26162644,704.14,703.16,1.0621168]
[1735719829894,1.05985319,704.15,703.16,1.0621168]
[1735719830489,1.48378707,704.2,703.16,1.0621168]
[1735719830490,1.05985319,704.13,703.16,1.0621168]
[1735719831695,1.48378707,704.2,703.06,1.0621168]
[1735719832597,0.2616276,704.19,703.06,1.0621168]
[1735719832896,1.48378707,704.2,703.07,1.0621168]
[1735719833200,0.26162773,704.19,703.07,1.0621168]
[1735719835294,0.26162773,704.19,703.09,1.0621168]
[1735719835699,1.48378707,704.2,703.09,1.0621168]
[1735719835899,0.2616296,704.19,703.09,1.0621168]
[1735719836598,1.32148279,704.19,703.1,1.0621168]
[1735719836900,1.05985319,704.19,703.1,1.0621168]
[1735719837304,0.26163234,704.18,703.1,1.0621168]
[1735719838296,0.26163271,704.17,703.1,1.0621168]
[1735719838497,1.05985319,704.19,703.1,1.0621168]
[1735719838699,0.26162943,704.18,703.1,1.0621168]
[1735719839097,1.05985319,704.17,703.1,1.0621168]
[1735719839803,0.26163305,704.16,703.1,1.0621168]
[1735719840003,0.26163305,704.16,702.97,0.28450716]
[1735719840004,0.26163305,704.16,703.09,1.0621168]
[1735719840199,0.26163305,704.15,703.09,1.0621168]
[1735719840401,0.26163305,704.14,703.09,1.0621168]
[1735719840600,1.05985319,704.19,703.09,1.0621168]
[1735719840803,0.26162928,704.18,703.09,1.0621168]
[1735719841199,1.48378707,704.2,703.14,1.0621168]
[1735719841200,1.05985319,704.15,703.14,1.0621168]
[1735719841402,0.26162733,704.14,703.14,1.0621168]
[1735719841603,1.05985319,704.15,703.14,1.0621168]
[1735719842307,1.05985319,704.15,703.15,1.0621168]
[1735719843508,1.05985319,704.16,703.14,1.0621168]
[1735719844802,1.05985319,704.16,703.15,1.0621168]
[1735719845203,0.26162325,704.15,703.15,1.0621168]
[1735719845407,0.26162312,704.14,703.15,1.0621168]
[1735719845707,1.05985319,704.16,703.15,1.0621168]
[1735719845906,1.05985319,704.13,703.19,1.0621168]
[1735719846803,1.05985319,704.17,703.13,1.0621168]
[1735719847005,0.26163835,704.16,703.13,1.0621168]
[1735719848002,1.05985319,704.14,703.11,1.0621168]
[1735719848803,1.05985319,704.13,703.11,1.0621168]
[1735719849509,1.48378707,704.2,702.97,0.28450716]
[1735719849510,1.05985319,704.12,703.14,1.0621168]
[1735719850508,1.05985319,704.11,703.15,1.0621168]
[1735719851513,1.05985319,704.11,703.14,1.0621168]
[1735719854613,1.05985319,704.11,703.15,1.0621168]
[1735719855415,1.05985319,704.11,703.16,1.0621168]
[1735719856017,0.26163382,704.1,703.16,1.0621168]
[1735719856327,1.05985319,704.11,703.16,1.0621168]
[1735719856328,0.26162978,704.09,703.16,1.0621168]
[1735719856517,0.26162978,704.08,703.16,1.0621168]
[1735719856718,0.26162978,704.07,703.17,1.0621168]
[1735719856917,1.05985319,704.09,703.17,1.0621168]
[1735719857112,0.26163238,704.08,703.17,1.0621168]
[1735719857714,1.05985319,704.04,703.21,1.0621168]
[1735719858818,1.05985319,704.04,703.0,1.06624449]
[1735719858819,1.05985319,704.04,703.23,1.0621168]
[1735719860017,0.26163205,704.03,703.23,1.0621168]
[1735719860221,1.05985319,704.02,703.26,1.0621168]
[1735719860814,0.26163396,704.01,703.26,1.0621168]
[1735719861017,1.05985319,704.02,703.26,1.0621168]
[1735719861418,1.05985319,703.99,703.26,1.0621168]
[1735719862423,1.05985319,704.0,703.27,1.0621168]
[1735719862625,0.26164094,703.99,703.27,1.0621168]
[1735719863424,1.05985319,703.98,703.24,1.0621168]
[1735719866622,1.05985319,704.0,703.26,1.0621168]
[1735719869029,1.05985319,704.0,703.27,1.0621168]
[1735719870228,1.05985319,704.02,703.28,1.0621168]
[1735719871232,1.05985319,704.01,703.28,1.0621168]
[1735719872331,1.05985319,704.01,703.27,1.0621168]
[1735719873031,1.05985319,704.23,703.27,1.0621168]
[1735719873233,1.05985319,704.23,703.2,1.0621168]
[1735719874329,1.05985319,704.22,703.18,1.0621168]
[1735719875836,1.05985319,704.27,703.21,1.0621168]
[1735719876734,1.05985319,704.27,702.97,0.28450716]
[1735719876735,2.54367189,704.28,703.2,1.0621168]
[1735719877836,1.4838187,704.28,703.19,1.0621168]
[1735719878837,1.4838187,704.28,703.18,1.0621168]
[1735719879635,1.4838187,704.28,703.17,1.0621168]
[1735719881740,0.26159045,704.27,703.17,1.0621168]
[1735719881941,0.26159045,704.27,703.16,1.0621168]
[1735719883136,1.05985319,704.18,703.27,1.0621168]
[1735719883337,0.26159045,704.17,703.27,1.0621168]
[1735719884441,1.05985319,704.15,703.24,1.0621168]
[1735719884641,0.26159045,704.14,703.24,1.0621168]
[1735719885342,0.26159045,704.14,703.2,1.0621168]
[1735719885543,0.26159045,704.13,703.2,1.0621168]
[1735719885744,0.26162288,704.18,703.2,1.0621168]
[1735719885943,0.26162288,704.17,703.2,1.0621168]
[1735719886239,0.26162288,704.16,703.2,1.0621168]
[1735719886441,0.2616202,704.15,703.17,1.0621168]
[1735719887539,0.2616202,704.15,702.97,1.35075165]
[1735719887540,1.32147339,704.15,703.16,1.0621168]
[1735719887744,0.2616202,704.14,703.16,1.0621168]
[1735719888346,1.05985319,704.15,703.16,1.0621168]
[1735719888644,1.05985319,704.12,703.17,1.0621168]
[1735719888837,0.26162936,704.11,703.17,1.0621168]
[1735719889841,0.26162936,704.11,703.16,1.0621168]
[1735719890047,0.26162936,704.1,703.16,1.0621168]
[1735719890244,0.26162936,704.09,703.16,1.0621168]
[1735719890444,0.26162936,704.08,703.16,1.0621168]
[1735719890645,0.26162936,704.07,703.16,1.0621168]
[1735719890842,0.26162936,704.06,703.16,1.0621168]
[1735719891044,0.26162936,704.05,703.16,1.0621168]
[1735719891245,0.26162936,704.04,703.16,1.0621168]
[1735719891441,1.05985319,704.13,703.16,1.0621168]
[1735719891749,0.26163557,704.12,703.16,1.0621168]
[1735719891944,1.05985319,704.11,703.15,1.0621168]
[1735719892148,0.26163557,704.1,703.15,1.0621168]
[1735719893148,1.32148876,704.1,703.15,1.0621168]
[1735719893442,0.26163557,704.09,703.15,1.0621168]
[1735719893650,0.2616363,704.08,703.15,1.0621168]
[1735719893844,0.2616363,704.07,703.15,1.0621168]